bitfinex/quotes_ETHUSD_20240608
["timestamp","ask_amount","ask_price","bid_price","bid_amount"]
[1717884519195,4.71114237,3679.0,3678.6,2.77707865]
[1717884519688,1.71114237,3679.0,3678.6,2.77707865]
[1717884520372,2.75426238,3679.0,3678.6,2.77707865]
[1717884520807,6.10399703,3678.9,3678.6,0.05866865]
[1717884520969,3.0297,3678.7,3678.6,0.05866865]
[1717884521199,3.0297,3678.7,3677.8,3.0506]
[1717884521200,3.58742497,3678.7,3677.8,3.0506]
[1717884521386,0.58742497,3678.7,3678.2,3.0506]
[1717884521582,1.1398894,3678.5,3678.2,5.12832]
[1717884521804,1.1398894,3678.6,3678.3,0.05688189]
[1717884522204,1.1398894,3678.5,3678.3,0.05688189]
[1717884523239,1.1398894,3678.6,3678.4,2.71857]
[1717884523585,1.1398894,3678.6,3678.5,0.05676592]
[1717884523794,1.1398894,3678.6,3678.4,2.71857]
[1717884524107,1.1398894,3678.6,3678.5,0.05676592]
[1717884524307,1.1398894,3678.6,3678.4,2.71857]
[1717884524533,1.1398894,3678.6,3678.5,0.05676592]
[1717884524694,1.1398894,3678.6,3678.4,2.71857]
[1717884524889,1.1398894,3678.6,3678.5,0.05676592]
[1717884525232,1.1398894,3678.6,3678.4,2.71857]
[1717884525429,1.1398894,3678.7,3678.5,0.05676592]
[1717884525643,1.42482951,3678.8,3678.7,2.4096]
[1717884525843,1.99450412,3679.5,3678.8,2.71827]
[1717884525844,1.14008688,3678.9,3678.8,2.71827]
[1717884526014,1.14008688,3679.2,3679.0,2.71812]
[1717884526209,9.8187,3679.9,3678.9,2.4096]
[1717884526210,1.14008688,3679.3,3679.2,2.71798]
[1717884526522,1.14008688,3679.4,3679.2,2.77434013]
[1717884526725,1.14008688,3679.4,3679.2,0.05636013]
[1717884527038,2.64519293,3679.3,3678.7,2.7183]
[1717884527210,1.42455941,3678.8,3678.7,2.7183]
[1717884527412,1.42455941,3678.9,3678.8,0.05659199]
[1717884527623,1.13976385,3679.4,3679.2,2.71796]
[1717884527798,1.13976385,3679.4,3679.3,2.4096]
[1717884528132,1.13976385,3679.6,3679.3,2.46590217]
[1717884528691,1.42455941,3679.8,3679.3,2.46590217]
[1717884528692,1.13976385,3679.7,3679.3,2.46590217]
[1717884529293,4.13976385,3679.7,3679.3,2.46590217]
[1717884529540,1.13976385,3679.7,3679.3,2.4096]
[1717884530432,4.34631979,3679.8,3679.3,2.4096]
[1717884531044,3.20655594,3679.8,3679.3,2.4096]
[1717884531196,4.13976385,3679.9,3679.3,2.4096]
[1717884532336,1.13976385,3679.9,3679.3,2.4096]
[1717884532637,4.78076385,3680.0,3679.3,2.4096]
[1717884532795,5.56326279,3680.0,3679.3,2.4096]
[1717884533600,5.56326279,3680.0,3679.4,2.71782]
[1717884533941,5.56326279,3680.0,3679.5,0.05598692]
[1717884534234,4.42349894,3680.0,3679.5,0.05598692]
[1717884535450,3.78249894,3680.0,3679.5,0.05598692]
[1717884535653,3.0,3679.9,3679.5,0.05598692]
[1717884536261,4.42349894,3680.0,3679.5,0.05598692]
[1717884536414,0.79519628,3679.9,3679.5,0.05598692]
[1717884537711,4.13976385,3680.0,3679.5,0.05598692]
[1717884537923,0.641,3680.0,3679.5,0.05598692]
[1717884541552,0.641,3680.0,3679.4,2.71782]
[1717884541844,0.641,3680.0,3679.6,0.05569594]
[1717884542049,0.641,3680.0,3679.5,0.05575389]
[1717884542229,0.641,3680.0,3679.7,0.05563799]
[1717884542429,0.641,3680.0,3679.6,0.05569594]
[1717884542645,0.641,3680.0,3679.8,0.05558005]
[1717884542829,0.641,3680.0,3679.7,0.05563799]
[1717884543149,0.641,3680.0,3679.4,2.71782]
[1717884543655,0.641,3680.0,3679.5,0.05575389]
[1717884544239,1.13976385,3680.2,3679.5,0.05575389]
[1717884544553,0.641,3680.2,3679.6,2.71768]
[1717884544756,0.641,3680.2,3679.7,0.05559308]
[1717884544942,4.01173003,3680.3,3679.7,0.05559308]
[1717884545147,4.01173003,3680.3,3679.8,2.3609]
[1717884546827,3.37073003,3680.3,3679.9,2.71745]
[1717884547056,0.37073003,3680.3,3679.9,2.71745]
[1717884547242,0.37073003,3680.3,3680.0,0.05541926]
[1717884548462,0.37073003,3680.3,3680.1,2.71731]
[1717884548764,0.37073003,3680.3,3680.2,0.0553034]
[1717884567638,3.27773003,3680.3,3680.2,0.0553034]
[1717884567840,6.60550303,3680.3,3680.2,0.0553034]
[1717884568038,8.61310707,3680.3,3679.7,2.71758]
[1717884568278,1.13695064,3680.1,3679.7,2.71758]
[1717884568584,3.0,3680.2,3680.0,2.71733]
[1717884568741,3.0,3680.2,3680.1,0.05326242]
[1717884569073,0.37073003,3680.3,3680.1,0.05326242]
[1717884573350,1.50768067,3680.3,3680.1,0.05326242]
[1717884573646,0.37073003,3680.3,3680.2,2.71724]
[1717884573949,0.37073003,3680.3,3680.2,2.77044449]
[1717884602082,0.37073003,3680.3,3680.2,5.23124449]
[1717884613696,0.37073003,3680.3,3680.2,5.87224449]
[1717884613894,0.37073003,3680.3,3680.2,6.51752386]
[1717884618916,0.37073003,3680.3,3680.2,7.91037852]
[1717884626771,0.37073003,3680.3,3680.2,4.05672386]
[1717884628177,0.37073003,3680.3,3680.2,3.41144449]
[1717884628471,2.83053003,3680.3,3680.2,2.77044449]
[1717884629484,0.37073003,3680.3,3680.2,2.77044449]
[1717884629661,0.37073003,3680.3,3680.2,2.71724]
[1717884629836,0.37073003,3680.3,3680.2,2.7699152]
[1717884630037,0.37073003,3680.3,3680.2,3.35015672]
[1717884630274,0.37073003,3680.3,3680.2,4.74301138]
[1717884630481,0.37073003,3680.3,3680.2,7.13451138]
[1717884631642,0.37073003,3680.3,3680.2,7.10932341]
[1717884632794,0.37073003,3680.3,3680.2,7.75032341]
[1717884632965,0.37073003,3680.3,3680.2,7.10932341]
[1717884633149,0.37073003,3680.3,3680.2,7.75032341]
[1717884636263,0.37073003,3680.3,3680.2,5.35882341]
[1717884655325,0.37073003,3680.3,3680.2,4.71782341]
[1717884655530,0.37073003,3680.3,3680.2,5.35882341]
[1717884664586,0.37073003,3680.3,3680.2,3.32496875]
[1717884664738,0.37073003,3680.3,3680.2,3.96596875]
[1717884665078,0.37073003,3680.3,3680.2,3.38572723]
[1717884666069,0.37073003,3680.3,3680.2,0.02748723]
[1717884666375,0.37073003,3680.3,3680.2,0.66848723]
[1717884666670,0.37073003,3680.3,3680.2,0.641]
[1717884666874,0.37073003,3680.3,3680.2,0.66843323]
[1717884667734,0.37073003,3680.3,3680.2,0.02743323]
[1717884667977,0.37073003,3680.3,3679.5,2.78]
[1717884667978,2.418,3680.2,3679.5,2.78]
[1717884668177,2.418,3680.2,3680.1,0.641]
[1717884670599,2.418,3680.2,3679.5,4.17285466]
[1717884671402,2.418,3680.2,3679.7,0.641]
[1717884671788,2.418,3680.2,3679.9,0.641]
[1717884679013,0.37073003,3680.3,3680.1,0.641]
[1717884679214,0.37073003,3680.3,3680.2,0.20338547]
[1717884679621,0.37073003,3680.3,3680.1,0.641]
[1717884680520,0.37073003,3680.3,3680.2,0.02580035]
[1717884683242,0.37073003,3680.3,3680.2,0.641]
[1717884683429,0.37073003,3680.3,3680.2,0.66681715]
[1717884684032,2.69923003,3680.3,3680.2,0.66681715]
[1717884684336,2.69923003,3680.3,3680.2,0.641]
[1717884684703,2.69923003,3680.3,3679.5,2.78]
[1717884684905,2.69923003,3680.3,3680.1,0.641]
[1717884685330,2.69923003,3680.3,3679.9,0.641]
[1717884685724,2.71725,3680.2,3679.9,0.641]
[1717884685916,2.71725,3680.2,3679.8,0.641]
[1717884686249,2.71725,3680.2,3679.9,0.02597194]
[1717884686773,2.71725,3680.2,3679.8,0.641]
[1717884686937,2.71725,3680.2,3679.9,0.02597194]
[1717884687264,2.71725,3680.2,3679.8,0.641]
[1717884687571,2.71725,3680.2,3679.9,0.02597194]
[1717884687728,2.71725,3680.2,3679.8,0.641]
[1717884687928,2.71725,3680.2,3679.9,0.02597194]
[1717884688161,2.71725,3680.2,3679.8,0.641]
[1717884688429,2.71725,3680.2,3679.9,0.02597194]
[1717884688829,2.71725,3680.2,3679.8,0.641]
[1717884689351,2.71725,3680.2,3679.9,0.02597194]
[1717884689537,2.71725,3680.2,3679.8,0.641]
[1717884689742,2.71725,3680.2,3679.9,0.02597194]
[1717884689957,2.71725,3680.2,3679.8,0.641]
[1717884690165,2.71725,3680.2,3679.9,0.02597194]
[1717884690342,2.71725,3680.2,3679.8,0.641]
[1717884690529,2.71725,3680.2,3679.9,0.02597194]
[1717884690732,2.71725,3680.2,3679.8,0.641]
[1717884690932,2.71725,3680.2,3679.9,0.02597194]
[1717884691154,2.71725,3680.2,3679.8,0.641]
[1717884691332,2.71725,3680.2,3679.9,0.02597194]
[1717884691665,2.71725,3680.2,3679.8,0.641]
[1717884692046,2.71725,3680.2,3679.9,0.02597194]
[1717884692555,2.71725,3680.2,3679.8,0.641]
[1717884692864,2.71725,3680.2,3679.9,0.02597194]
[1717884693268,2.71725,3680.2,3679.8,0.641]
[1717884693640,2.71725,3680.2,3679.9,0.02597194]
[1717884693962,2.71725,3680.2,3679.8,0.641]
[1717884694131,2.71725,3680.2,3679.9,0.02597194]
[1717884694331,2.71725,3680.2,3679.8,0.641]
[1717884694551,2.71725,3680.2,3679.9,0.02597194]
[1717884694729,2.71725,3680.2,3679.5,2.78]
[1717884695078,2.71725,3680.2,3679.9,0.641]
[1717884695569,2.71725,3680.2,3680.0,0.02591474]
[1717884710022,2.69923003,3680.3,3680.1,0.641]
[1717884710395,2.69923003,3680.3,3680.2,0.02587315]
[1717884719141,2.69923003,3680.3,3679.9,0.641]
[1717884719341,2.69923003,3680.3,3680.0,0.02593714]
[1717884720800,3.83618067,3680.3,3680.0,0.641]
[1717884723877,2.71735,3680.1,3679.5,2.78]
[1717884724085,2.71735,3680.1,3679.6,0.641]
[1717884724250,3.85430064,3680.1,3679.6,0.66716597]
[1717884725080,2.71735,3680.1,3679.6,0.66716597]
[1717884726892,2.71735,3680.1,3679.8,0.641]
[1717884727200,2.71735,3680.1,3679.9,0.02601954]
[1717884737644,1.13695064,3680.2,3680.0,0.641]
[1717884738010,1.50768067,3680.3,3680.1,0.02596395]
[1717884738205,1.50768067,3680.3,3680.2,0.641]
[1717884738206,0.37073003,3680.3,3680.2,0.641]
[1717884738420,0.37073003,3680.3,3680.2,0.66689555]
[1717884739236,0.37073003,3680.3,3680.2,3.05359555]
[1717884739397,0.37073003,3680.3,3680.2,3.35895511]
[1717884747683,0.37073003,3680.3,3680.2,0.97225511]
[1717884759505,0.37073003,3680.3,3680.2,0.33125511]
[1717884759719,0.37073003,3680.3,3680.2,0.66689555]
[1717884764527,0.37073003,3680.3,3680.2,0.02589555]
[1717884765028,0.37073003,3680.3,3680.2,0.02749045]
[1717884765483,2.84963003,3680.3,3680.2,0.02749045]
[1717884765884,2.84963003,3680.3,3680.0,0.641]
[1717884766132,2.84963003,3680.3,3680.2,0.02749045]
[1717884766299,2.84963003,3680.3,3680.1,0.02755173]
[1717884766631,2.84963003,3680.3,3680.2,0.02749045]
[1717884766836,2.84963003,3680.3,3680.0,0.641]
[1717884766988,2.84963003,3680.3,3680.1,0.02755173]
[1717884772539,2.71724,3680.2,3680.1,0.02755173]
[1717884772743,5.05114,3680.2,3680.1,0.02755173]
[1717884772939,5.05114,3680.2,3679.6,0.641]
[1717884773316,5.05114,3680.2,3679.7,0.02594376]
[1717884778449,2.3339,3680.1,3679.7,0.02594376]
[1717884781128,3.13216144,3680.1,3679.7,0.02594376]
[1717884784924,2.7174,3680.0,3679.7,0.02594376]
[1717884785264,2.7174,3680.0,3679.5,3.421]
[1717884785561,2.7174,3680.0,3679.6,0.02628659]
[1717884785930,2.7174,3680.0,3679.5,3.421]
[1717884786132,2.7174,3680.0,3679.7,0.02622937]
[1717884786338,2.7174,3680.0,3679.6,0.02628659]
[1717884786641,2.7174,3680.0,3679.7,0.02622937]
[1717884786836,2.7174,3680.0,3679.5,3.421]
[1717884787039,2.7174,3680.0,3679.6,0.02628659]
[1717884787369,2.7174,3680.0,3679.5,2.78]
[1717884787586,3.43739807,3680.0,3679.7,0.02622937]
[1717884787740,2.71753,3679.8,3679.6,0.02628939]
[1717884788053,2.71753,3679.8,3679.3,0.641]
[1717884789758,2.71753,3679.8,3678.8,4.61527538]
[1717884790061,2.4979,3679.7,3679.2,0.641]
[1717884792963,2.7177,3679.6,3678.8,4.61527538]
[1717884793179,2.7177,3679.6,3679.1,0.641]
[1717884794473,1.13695064,3680.0,3679.2,3.85875466]
[1717884794687,1.13695064,3680.7,3679.9,0.641]
[1717884794959,1.13695064,3680.7,3679.6,2.4659]
[1717884794960,1.13695064,3680.9,3680.2,0.641]
[1717884795169,3.63485064,3681.1,3680.2,0.641]
[1717884796124,2.7168,3680.8,3680.2,0.641]
[1717884800258,2.7168,3680.8,3680.2,0.66904554]
[1717884805191,2.4699,3680.6,3680.2,0.66904554]
[1717884811804,2.4699,3680.6,3680.2,0.02804554]
[1717884812004,2.4699,3680.6,3680.2,0.66904554]
[1717884812215,2.4699,3680.6,3680.2,0.641]
[1717884812508,2.4699,3680.6,3680.2,0.66879651]
[1717884813114,2.4699,3680.6,3680.2,0.02779651]
[1717884813411,2.71708,3680.5,3680.2,0.02779651]
[1717884813577,2.71708,3680.5,3679.9,0.641]
[1717884813773,2.71708,3680.5,3680.2,0.02752645]
[1717884813968,2.71708,3680.5,3679.9,0.641]
[1717884814174,2.71708,3680.5,3680.2,0.02752645]
[1717884814480,2.71708,3680.5,3679.9,0.641]
[1717884814686,2.71708,3680.5,3680.0,0.02764901]
[1717884816871,2.71724,3680.2,3680.0,0.02764901]
[1717884817115,2.3153,3680.1,3679.7,0.641]
[1717884817415,2.3153,3680.1,3679.8,0.02777159]
[1717884817710,2.3153,3680.1,3679.7,0.641]
[1717884817920,2.3153,3680.1,3679.8,0.02777159]
[1717884818217,2.3153,3680.1,3679.7,0.641]
[1717884818569,2.3153,3680.1,3679.8,0.02777159]
[1717884818970,2.3153,3680.1,3679.7,0.641]
[1717884819175,2.3153,3680.1,3679.9,0.0277703]
[1717884819441,2.3153,3680.1,3679.8,0.02783159]
[1717884819580,2.3153,3680.1,3680.0,0.02770901]
[1717884819975,2.3153,3680.1,3679.7,0.641]
[1717884820174,2.3153,3680.1,3680.0,0.02770901]
[1717884820414,2.3153,3680.1,3679.7,0.641]
[1717884820576,2.3153,3680.1,3680.0,0.02770901]
[1717884821821,2.3153,3680.1,3679.7,0.641]
[1717884821974,2.3153,3680.1,3680.0,0.02770901]
[1717884822174,2.3153,3680.1,3679.7,0.641]
[1717884822376,2.3153,3680.1,3680.0,0.02770901]
[1717884822677,2.3153,3680.1,3679.7,0.641]
[1717884822914,2.3153,3680.1,3679.8,0.02783159]
[1717884823221,2.3153,3680.1,3679.7,0.641]
[1717884823427,2.3153,3680.1,3679.9,0.0277703]
[1717884823579,2.3153,3680.1,3679.8,0.02783159]
[1717884823776,2.3153,3680.1,3680.0,0.02770901]
[1717884824487,2.3153,3680.1,3679.7,0.641]
[1717884824699,2.3153,3680.1,3679.8,0.02783159]
[1717884824901,2.3153,3680.1,3679.7,0.641]
[1717884825079,2.3153,3680.1,3679.8,0.02783159]
[1717884825594,2.3153,3680.1,3679.7,0.641]
[1717884825827,2.3153,3680.1,3679.9,0.0277703]
[1717884826096,2.3153,3680.1,3680.0,0.02770901]
[1717884826412,2.3153,3680.1,3679.7,0.641]
[1717884826916,2.3153,3680.1,3679.8,0.02783159]
[1717884827210,2.3153,3680.1,3679.7,0.641]
[1717884827430,2.3153,3680.1,3679.9,0.0277703]
[1717884827595,2.3153,3680.1,3679.8,0.02783159]
[1717884828346,2.3153,3680.1,3679.9,0.0277703]
[1717884828683,2.3153,3680.1,3679.7,0.641]
[1717884828885,2.3153,3680.1,3679.8,0.02783159]
[1717884829177,2.71724,3680.2,3679.7,0.641]
[1717884829381,2.71724,3680.2,3679.9,0.0277703]
[1717884829608,3.44859207,3680.2,3679.9,0.0277703]
[1717884829802,3.44859207,3680.2,3679.7,0.641]
[1717884830015,2.71724,3680.2,3680.0,0.02770901]
[1717884830194,2.71724,3680.2,3679.7,0.641]
[1717884830706,2.71724,3680.2,3679.8,0.02783159]
[1717884831027,2.71724,3680.2,3679.7,0.641]
[1717884831231,2.71724,3680.2,3679.9,0.0277703]
[1717884831439,2.71724,3680.2,3679.8,0.02783159]
[1717884831738,2.71724,3680.2,3679.9,0.0277703]
[1717884831898,2.71724,3680.2,3679.7,3.1374]
[1717884832230,2.71724,3680.2,3679.8,0.02783159]
[1717884832633,2.71724,3680.2,3679.7,3.1374]
[1717884832865,2.71724,3680.2,3679.9,0.0277703]
[1717884832992,2.71724,3680.2,3679.8,0.02783159]
[1717884833197,2.71724,3680.2,3680.0,0.02770901]
[1717884833397,2.71724,3680.2,3679.9,0.0277703]
[1717884833628,2.71724,3680.2,3680.1,0.02764773]
[1717884833829,2.71724,3680.2,3680.0,0.02772101]
[1717884834129,2.71724,3680.2,3680.1,0.02765973]
[1717884834329,2.71724,3680.2,3679.7,3.1374]
[1717884834495,2.71724,3680.2,3679.8,0.02784359]
[1717884834702,2.71724,3680.2,3679.7,3.1374]
[1717884835039,2.71724,3680.2,3679.8,0.02784359]
[1717884835331,2.71724,3680.2,3679.7,3.1374]
[1717884835536,2.71724,3680.2,3679.8,0.02784359]
[1717884835732,2.71724,3680.2,3679.7,2.4964]
[1717884835938,2.71724,3680.2,3679.8,0.66890659]
[1717884842660,5.02764,3680.2,3679.8,0.66890659]
[1717884865090,6.16459064,3680.2,3679.8,0.66890659]
[1717884867698,6.16459064,3680.2,3679.8,0.02790659]
[1717884867872,6.16459064,3680.2,3679.6,0.641]
[1717884868071,6.16459064,3680.2,3679.7,0.02789889]
[1717884889599,6.16459064,3680.2,3679.8,0.641]
[1717884889760,6.16459064,3680.2,3679.8,0.66885259]
[1717884902900,6.96072952,3680.2,3679.8,0.02785259]
[1717884903201,2.2757,3679.9,3679.8,0.02785259]
[1717884903385,3.70176812,3679.9,3679.2,0.641]
[1717884903628,1.14090828,3679.7,3679.4,0.641]
[1717884903986,1.14090828,3679.7,3678.9,2.63562256]
[1717884904187,2.2757,3679.6,3679.4,0.641]
[1717884905419,2.2757,3679.6,3679.5,0.026243]
[1717884909466,4.99338,3679.6,3679.5,0.026243]
[1717884909967,6.13428828,3679.6,3678.9,0.641]
[1717884910124,6.13428828,3679.6,3679.0,0.02669716]
[1717884911278,4.99338,3679.6,3679.0,0.02669716]
[1717884913569,5.81351564,3679.6,3678.9,0.641]
[1717884913769,2.71789,3679.4,3678.9,0.641]
[1717884913973,2.71798,3679.2,3679.0,0.02669716]
[1717884914141,2.71798,3679.2,3678.5,2.78]
[1717884914338,2.71798,3679.2,3678.6,0.02692611]
[1717884914575,2.71798,3679.2,3678.7,0.641]
[1717884914756,2.71798,3679.2,3678.8,0.02681163]
[1717884915482,2.71812,3679.0,3678.8,0.02681163]
[1717884916180,2.71812,3679.0,3678.4,0.641]
[1717884916410,2.71812,3679.0,3678.5,0.02715703]
[1717884916616,2.71812,3679.0,3678.4,0.641]
[1717884916781,2.71812,3679.0,3678.6,0.641]
[1717884916982,2.71812,3679.0,3678.7,0.02704254]
[1717884917191,2.71812,3679.0,3678.8,0.641]
[1717884917386,2.71812,3679.0,3678.9,0.02692807]
[1717884919500,2.71784,3679.4,3679.0,2.3145]
[1717884919698,2.71784,3679.4,3679.3,0.641]
[1717884920075,2.71784,3679.4,3679.3,0.66782801]
[1717884925289,5.04244,3679.4,3679.3,0.02682801]
[1717884925695,5.04244,3679.4,3678.9,0.641]
[1717884926102,5.04244,3679.4,3679.0,0.02692685]
[1717884932126,5.04244,3679.4,3678.8,0.641]
[1717884932459,2.3213,3679.0,3678.9,0.02699528]
[1717884932812,2.71811,3679.1,3678.6,0.641]
[1717884933020,2.71811,3679.1,3678.7,0.0271966]
[1717884935763,2.71811,3679.1,3678.6,0.641]
[1717884935939,2.71811,3679.1,3678.7,0.0271966]
[1717884936842,2.7182,3678.9,3678.7,0.0271966]
[1717884937164,2.7182,3678.9,3678.4,0.641]
[1717884937728,2.7182,3678.9,3678.5,0.02731109]
[1717884938062,2.7182,3678.9,3678.4,0.641]
[1717884938265,2.7182,3678.9,3678.6,0.02725385]
[1717884938566,2.7182,3678.9,3678.5,0.02731109]
[1717884938741,2.7182,3678.9,3678.6,0.02725385]
[1717884938964,2.7182,3678.9,3678.4,0.641]
[1717884939165,2.7182,3678.9,3678.5,0.02731109]
[1717884939370,2.7182,3678.9,3678.6,3.1381]
[1717884939699,2.7182,3678.9,3678.7,0.0271966]
[1717884946117,0.0271966,3678.8,3678.7,0.0271966]
[1717884959183,0.0271966,3678.8,3678.5,0.641]
[1717884959523,0.0271966,3678.8,3678.6,0.02739675]
[1717884962344,2.71835,3678.7,3678.6,0.02739675]
[1717884962720,2.71835,3678.7,3678.3,0.641]
[1717884963056,2.71835,3678.7,3678.4,0.02751124]
[1717884967459,3.40153549,3678.7,3678.0,0.641]
[1717884967763,2.71835,3678.7,3678.1,0.02768301]
[1717884968342,5.14071,3678.4,3678.1,0.02768301]
[1717884968745,5.14071,3678.4,3677.8,0.641]
[1717884968957,5.14071,3678.4,3678.2,0.02791158]
[1717884969217,5.14071,3678.4,3678.3,0.02785433]
[1717884969526,5.14071,3678.4,3677.9,0.641]
[1717884969880,5.14071,3678.4,3678.0,0.0280261]
[1717884978105,5.14071,3678.4,3677.9,0.641]
[1717884978435,5.14071,3678.4,3678.1,0.02805013]
[1717884978639,5.14071,3678.4,3678.0,0.02810739]
[1717884978794,5.14071,3678.4,3678.2,0.02799287]
[1717884978990,5.14071,3678.4,3678.1,0.02805013]
[1717884979195,5.14071,3678.4,3678.3,0.02793562]
[1717884979505,5.14071,3678.4,3677.9,0.641]
[1717884980029,5.14071,3678.4,3678.0,0.02810739]
[1717884982642,3.34677183,3678.4,3678.0,0.02810739]
[1717884982850,2.71872,3678.2,3678.0,0.02810739]
[1717884983071,2.71872,3678.2,3677.3,0.641]
[1717884983272,2.71899,3677.9,3677.4,0.02852949]
[1717884984695,2.71899,3677.9,3677.5,0.641]
[1717884984899,2.71899,3677.9,3677.6,0.02841494]
[1717884988045,5.14109,3677.9,3677.6,0.02841494]
[1717884988441,5.14109,3677.9,3677.7,0.02848943]
[1717884988846,5.14109,3677.9,3677.3,0.641]
[1717884989050,5.14109,3677.9,3677.8,0.02843216]
[1717884989367,5.14109,3677.9,3677.3,0.641]
[1717884989739,5.14109,3677.9,3677.4,0.02866126]
[1717884993170,2.7191,3677.7,3677.4,0.02866126]
[1717884993525,2.7191,3677.7,3677.1,0.641]
[1717884994045,2.7191,3677.7,3677.2,0.02898613]
[1717884996742,2.7191,3677.7,3677.1,0.641]
[1717884997088,2.7191,3677.7,3677.2,0.02898613]
[1717885003164,2.7191,3677.7,3677.2,0.66998613]
[1717885011336,2.7191,3677.7,3677.2,2.30220208]
[1717885011761,2.7191,3677.7,3677.2,0.66998613]
[1717885015682,2.7191,3677.7,3677.2,0.02898613]
[1717885015976,2.7191,3677.7,3677.1,0.641]
[1717885016184,2.7191,3677.7,3677.3,0.02902701]
[1717885016354,2.7191,3677.7,3677.2,0.02908429]
[1717885016680,2.7191,3677.7,3677.3,0.02902701]
[1717885016833,2.7191,3677.7,3677.1,0.641]
[1717885017039,2.7191,3677.7,3677.1,0.98378996]
[1717885017285,2.7191,3677.7,3677.2,0.02908429]
[1717885027399,3.86000828,3677.7,3677.2,0.02908429]
[1717885027572,2.7191,3677.7,3677.2,0.02908429]
[1717885028357,3.86000828,3677.7,3677.2,0.02908429]
[1717885036208,1.14090828,3677.6,3677.2,0.02908429]
[1717885036367,3.86000828,3677.7,3677.2,0.02908429]
[1717885037515,1.14090828,3677.6,3677.2,0.02908429]
[1717885037686,3.86000828,3677.7,3677.2,0.02908429]
[1717885038325,1.14090828,3677.6,3677.2,0.02908429]
[1717885038622,2.7191,3677.7,3677.2,0.02908429]
[1717885038623,3.86000828,3677.7,3677.2,0.02908429]
[1717885046103,1.14090828,3677.6,3677.2,0.02908429]
[1717885049126,1.14090828,3677.5,3677.2,0.02908429]
[1717885049538,1.14090828,3677.5,3677.0,0.641]
[1717885049739,1.14090828,3677.5,3677.1,0.02912195]
[1717885054237,1.14090828,3677.6,3677.1,0.02912195]
[1717885055011,1.14090828,3677.5,3677.1,0.02912195]
[1717885058364,1.14090828,3677.6,3677.1,0.02912195]
[1717885065766,3.59960828,3677.4,3677.1,0.02912195]
[1717885065938,3.59960828,3677.4,3676.8,0.641]
[1717885066131,0.02912195,3677.1,3676.9,0.02924776]
[1717885066333,0.02912195,3677.1,3676.7,0.641]
[1717885066555,0.02912195,3677.1,3676.8,0.02930506]
[1717885066761,0.02912195,3677.1,3676.6,3.37362]
[1717885067077,0.02912195,3677.1,3676.7,0.02936236]
[1717885068223,0.02912195,3677.1,3676.8,0.641]
[1717885068777,0.02912195,3677.1,3676.9,0.02924776]
[1717885069941,2.7196,3677.0,3676.4,2.4067]
[1717885070149,2.7196,3677.0,3676.5,0.02947697]
[1717885070470,2.7196,3677.0,3676.5,0.67047697]
[1717885081943,2.7196,3677.0,3676.5,0.02947697]
[1717885082298,3.41525302,3677.0,3676.4,0.641]
[1717885082608,3.41525302,3677.0,3676.5,0.02963124]
[1717885084405,2.7196,3677.0,3676.5,0.02963124]
[1717885086374,2.7196,3677.0,3676.6,0.641]
[1717885086577,2.7196,3677.0,3676.7,0.02952223]
[1717885088213,2.7196,3677.0,3676.5,0.641]
[1717885088499,2.7196,3677.0,3676.8,0.02946493]
[1717885088803,2.7196,3677.0,3676.9,0.02940763]
[1717885089193,2.7196,3677.0,3676.5,0.641]
[1717885089394,0.02912195,3677.1,3676.6,2.38597953]
[1717885089571,0.02912195,3677.1,3677.0,0.641]
[1717885089766,0.02912195,3677.1,3677.0,0.67045972]
[1717885090488,0.02912195,3677.1,3677.0,0.02945972]
[1717885090797,0.02912195,3677.1,3676.8,0.641]
[1717885090966,0.02912195,3677.1,3676.9,0.02951701]
[1717885096217,0.02912195,3677.1,3676.7,0.641]
[1717885096417,0.02912195,3677.1,3677.0,0.02945972]
[1717885096714,0.02912195,3677.1,3676.7,0.641]
[1717885096888,0.02912195,3677.1,3677.0,0.02945972]
[1717885097101,0.02912195,3677.1,3676.6,0.641]
[1717885097300,0.02912195,3677.1,3677.0,0.02945972]
[1717885097477,0.02912195,3677.1,3676.6,0.641]
[1717885097678,0.02912195,3677.1,3677.0,0.02945972]
[1717885097918,0.02912195,3677.1,3676.6,0.641]
[1717885098106,0.02912195,3677.1,3677.0,0.02945972]
[1717885098619,0.02912195,3677.1,3676.6,0.641]
[1717885098915,0.02912195,3677.1,3677.0,0.02945972]
[1717885099074,0.02912195,3677.1,3676.6,0.641]
[1717885099274,0.02912195,3677.1,3677.0,0.02945972]
[1717885099475,0.02912195,3677.1,3676.6,0.641]
[1717885099678,0.02912195,3677.1,3677.0,0.02945972]
[1717885099876,0.02912195,3677.1,3676.6,0.641]
[1717885100520,0.02912195,3677.1,3676.7,0.02956428]
[1717885110304,0.02912195,3677.1,3677.0,0.641]
[1717885110909,0.02912195,3677.1,3677.0,0.67036714]
[1717885116856,0.02912195,3677.1,3677.0,3.00996714]
[1717885125782,0.02912195,3677.1,3677.0,4.4028218]
[1717885140252,0.02912195,3677.1,3677.0,4.9528218]
[1717885140451,0.02912195,3677.1,3677.0,5.83493342]
[1717885142300,4.49881344,3678.6,3677.3,2.71931]
[1717885142600,3.0,3678.5,3677.7,0.641]
[1717885142946,3.0,3678.5,3677.8,0.02855273]
[1717885145049,3.85781344,3678.6,3677.8,0.02855273]
[1717885145350,2.4245,3678.5,3678.2,0.641]
[1717885147596,2.4245,3678.5,3678.0,0.641]
[1717885147898,2.4245,3678.5,3678.1,0.02817628]
[1717885148199,2.4245,3678.5,3678.0,0.641]
[1717885148395,2.4245,3678.5,3678.2,0.02804894]
[1717885148568,2.4245,3678.5,3678.1,0.0281062]
[1717885148884,2.4245,3678.5,3678.0,0.641]
[1717885149190,2.4245,3678.5,3678.2,0.02804894]
[1717885149367,2.4245,3678.5,3678.1,0.0281062]
[1717885149552,2.4245,3678.5,3678.0,0.641]
[1717885149752,2.4245,3678.5,3678.2,0.02804894]
[1717885150000,2.4245,3678.5,3678.0,0.641]
[1717885150348,2.4245,3678.5,3678.1,0.0281062]
[1717885151889,2.71842,3678.6,3678.1,0.0281062]
[1717885152249,2.2981966,3678.8,3678.1,0.0281062]